bitfinex/quotes_BTCUSD_20250408
["timestamp","ask_amount","ask_price","bid_price","bid_amount"]
[1744137462110,0.0078337,77578.0,77577.0,0.270695]
[1744137462345,0.257783,77585.0,77577.0,0.270695]
[1744137462553,0.34,77585.0,77582.0,0.257789]
[1744137462790,0.34,77585.0,77581.0,0.270682]
[1744137462791,0.34,77585.0,77580.0,0.257796]
[1744137462991,0.597793,77582.0,77577.0,0.01289]
[1744137463193,0.01289,77577.0,77568.0,0.012891]
[1744137463393,0.34,77582.0,77571.0,0.257828]
[1744137463394,0.77969241,77580.0,77571.0,0.257828]
[1744137463572,0.34,77582.0,77581.0,0.257795]
[1744137463877,0.001,77585.0,77584.0,0.28521485]
[1744137464097,0.00141733,77585.0,77584.0,0.41147349]
[1744137464669,0.00041733,77585.0,77584.0,0.41147349]
[1744137465469,0.25779,77583.0,77575.0,0.257812]
[1744137465672,0.00041733,77585.0,77577.0,0.01289]
[1744137465959,0.00041733,77585.0,77579.0,0.01289]
[1744137466236,0.00041733,77585.0,77584.0,0.02742985]
[1744137466440,0.00041733,77585.0,77584.0,0.16068849]
[1744137466656,0.00041733,77585.0,77584.0,0.15568849]
[1744137466861,0.00041733,77585.0,77584.0,0.014889]
[1744137467054,0.00041733,77585.0,77584.0,0.15568849]
[1744137467628,0.00041733,77585.0,77584.0,0.15968849]
[1744137467829,0.01330633,77585.0,77584.0,0.006]
[1744137468185,0.00041733,77585.0,77584.0,0.006]
[1744137468305,0.00041733,77585.0,77584.0,0.14314764]
[1744137468502,0.00041733,77585.0,77584.0,0.13025864]
[1744137469409,0.00041733,77585.0,77584.0,0.12625864]
[1744137469635,0.00041733,77585.0,77557.0,0.0475]
[1744137469636,0.00041733,77585.0,77577.0,0.01289]
[1744137469914,0.00041733,77585.0,77584.0,0.013889]
[1744137470357,0.00041733,77585.0,77584.0,0.016889]
[1744137470558,0.00041733,77585.0,77584.0,0.013889]
[1744137470762,0.00041733,77585.0,77584.0,0.271674]
[1744137470969,0.00041733,77585.0,77584.0,0.39793264]
[1744137471469,0.00041733,77585.0,77584.0,0.39693264]
[1744137472392,0.01330633,77585.0,77579.0,0.01289]
[1744137472609,0.00041733,77585.0,77584.0,0.272674]
[1744137473254,0.00041733,77585.0,77584.0,0.271674]
[1744137473473,0.00041733,77585.0,77584.0,0.013889]
[1744137473690,0.00041733,77585.0,77584.0,0.004]
[1744137473911,0.00041733,77585.0,77584.0,0.13025864]
[1744137474134,0.00041733,77585.0,77584.0,0.12625864]
[1744137474357,0.00041733,77585.0,77584.0,0.14537689]
[1744137474581,0.00041733,77585.0,77584.0,0.40058449]
[1744137474796,0.00041733,77585.0,77584.0,0.39893264]
[1744137474962,0.00041733,77585.0,77584.0,0.39993264]
[1744137475569,0.00041733,77585.0,77584.0,0.39893264]
[1744137475744,0.00041733,77585.0,77584.0,0.40193264]
[1744137476148,0.00041733,77585.0,77584.0,0.003]
[1744137476500,0.61108733,77585.0,77584.0,0.006]
[1744137477063,0.61108733,77585.0,77584.0,0.001]
[1744137477404,0.270729,77568.0,77562.0,0.00948142]
[1744137477606,0.257841,77567.0,77562.0,0.28023142]
[1744137477851,0.00141733,77585.0,77584.0,0.257785]
[1744137477995,0.00141733,77585.0,77584.0,0.270674]
[1744137478206,0.00141733,77585.0,77584.0,0.39693264]
[1744137478411,0.00041733,77585.0,77584.0,0.41147349]
[1744137479736,0.00041733,77585.0,77584.0,0.41647349]
[1744137479944,0.00041733,77585.0,77584.0,0.42600522]
[1744137480151,3.3e-07,77585.0,77584.0,0.42100522]
[1744137480347,3.3e-07,77585.0,77584.0,0.42600522]
[1744137480529,3.3e-07,77585.0,77584.0,0.14079037]
[1744137480898,0.61067033,77585.0,77584.0,0.008]
[1744137481453,0.61067033,77585.0,77584.0,0.005]
[1744137481698,0.61067033,77585.0,77584.0,0.011]
[1744137481925,0.61067033,77585.0,77584.0,0.006]
[1744137482052,0.61067033,77585.0,77584.0,0.013]
[1744137482250,0.61067033,77585.0,77584.0,0.007]
[1744137482450,0.34,77578.0,77576.0,0.01289]
[1744137482701,0.34,77578.0,77575.0,0.01289]
[1744137482850,0.34,77578.0,77577.0,0.270698]
[1744137483284,0.34,77578.0,77575.0,0.01289]
[1744137483483,0.34,77578.0,77577.0,0.257808]
[1744137483688,0.34,77578.0,77577.0,0.270698]
[1744137483966,0.36402947,77578.0,77577.0,0.270698]
[1744137484424,0.02402947,77578.0,77577.0,0.270698]
[1744137484626,0.02402947,77578.0,77577.0,0.39695664]
[1744137484980,0.02402947,77583.0,77582.0,0.27068]
[1744137485377,0.352889,77582.0,77576.0,0.001]
[1744137485603,0.270695,77578.0,77574.0,0.257817]
[1744137485808,0.270704,77577.0,77573.0,0.257821]
[1744137486008,0.02402947,77577.0,77565.0,0.012892]
[1744137486223,0.257821,77573.0,77570.0,0.257831]
[1744137486576,0.257828,77571.0,77568.0,0.257835]
[1744137486742,0.02402947,77572.0,77570.0,0.257831]
[1744137486945,0.02402947,77572.0,77571.0,0.257828]
[1744137487292,0.001,77583.0,77581.0,0.270684]
[1744137487492,0.257794,77582.0,77577.0,0.01289]
[1744137487623,0.34,77579.0,77576.0,0.257809]
[1744137487847,0.34,77579.0,77573.0,0.001]
[1744137487848,0.257818,77574.0,77573.0,0.001]
[1744137488023,0.270708,77574.0,77573.0,0.001]
[1744137488386,0.257827,77572.0,77569.0,0.257834]
[1744137488591,0.257827,77572.0,77565.0,0.006]
[1744137488592,0.270736,77566.0,77565.0,0.006]
[1744137489298,0.257855,77563.0,77560.0,0.257864]
[1744137489437,0.257853,77564.0,77561.0,0.257861]
[1744137489827,0.610782,77553.0,77538.0,0.012896]
[1744137490048,0.610782,77553.0,77547.0,0.257905]
[1744137490434,0.63487991,77553.0,77547.0,0.257905]
[1744137490633,0.36409791,77553.0,77550.0,0.257897]
[1744137490840,0.36409791,77553.0,77552.0,0.2582254]
[1744137491041,0.36409791,77553.0,77552.0,0.2711194]
[1744137491270,0.02409791,77553.0,77552.0,0.39737804]
[1744137491419,0.02409791,77553.0,77552.0,0.39779504]
[1744137491624,0.02409791,77563.0,77552.0,0.39779504]
[1744137491832,0.02409791,77563.0,77562.0,0.27075]
[1744137492235,0.02409791,77563.0,77562.0,0.39700864]
[1744137492396,0.02409791,77563.0,77562.0,0.41154949]
[1744137492603,9.1e-07,77563.0,77562.0,0.41154949]
[1744137492964,0.257765,77590.0,77586.0,0.257775]
[1744137493100,0.012887,77594.0,77588.0,0.257769]
[1744137493300,0.34,77590.0,77586.0,0.012888]
[1744137493500,0.257783,77585.0,77581.0,0.257795]
[1744137493722,0.257765,77590.0,77586.0,0.257778]
[1744137493965,0.257758,77593.0,77589.0,0.257766]
[1744137494167,0.257765,77590.0,77586.0,0.257777]
[1744137494363,0.257765,77590.0,77586.0,0.25790225]
[1744137494578,0.597765,77590.0,77586.0,0.25790225]
[1744137494789,0.34,77590.0,77586.0,0.00012525]
[1744137494943,0.597775,77587.0,77586.0,0.00012525]
[1744137495143,0.610663,77587.0,77586.0,0.00012525]
[1744137496648,0.73692164,77587.0,77586.0,0.00012525]
[1744137496849,0.78302164,77587.0,77586.0,0.00012525]
[1744137496991,0.78402164,77587.0,77586.0,0.00012525]
[1744137498212,0.341,77587.0,77586.0,0.27079125]
[1744137498543,0.001,77587.0,77586.0,0.00012525]
[1744137498756,0.34,77588.0,77586.0,0.00012525]
[1744137499002,0.001,77587.0,77586.0,0.00112525]
[1744137499204,0.598775,77587.0,77586.0,0.00112525]
[1744137499408,0.597775,77587.0,77586.0,0.00012525]
[1744137499554,0.34,77587.0,77586.0,0.00012525]
[1744137499755,0.001,77587.0,77586.0,0.27079125]
[1744137499959,0.271663,77587.0,77586.0,0.00012525]
[1744137500165,0.00777432,77590.0,77589.0,0.012888]
[1744137500335,0.012886,77602.0,77593.0,0.012887]
[1744137500538,0.0001673,77617.0,77608.0,0.257705]
[1744137500763,0.012884,77615.0,77607.0,0.270592]
[1744137500975,0.0001673,77617.0,77608.0,0.012885]
[1744137501181,0.00806608,77609.0,77608.0,0.012885]
[1744137501406,0.257745,77596.0,77593.0,0.257753]
[1744137501629,0.257751,77594.0,77579.0,0.0473]
[1744137501852,0.257751,77594.0,77584.0,0.012889]
[1744137502069,0.257751,77594.0,77579.0,0.06019]
[1744137502070,0.34,77600.0,77599.0,0.012886]
[1744137502294,0.34,77600.0,77587.0,0.12625864]
[1744137502533,0.012887,77596.0,77593.0,0.006]
[1744137502739,0.012887,77597.0,77591.0,0.25776]
[1744137503182,0.34,77599.0,77593.0,0.257754]
[1744137503392,0.597737,77599.0,77594.0,0.012887]
[1744137503591,0.34,77597.0,77594.0,0.012887]
[1744137503836,0.34,77597.0,77594.0,0.270638]
[1744137504411,0.257768,77589.0,77579.0,0.0473]
[1744137504612,0.352888,77590.0,77585.0,0.257781]
[1744137504761,0.34,77590.0,77587.0,0.012888]
[1744137504969,0.34,77590.0,77587.0,0.27066]
[1744137505173,0.257775,77587.0,77581.0,0.012889]
[1744137505526,0.34,77590.0,77587.0,0.257771]
[1744137505729,0.0004,77609.0,77608.0,0.012885]
[1744137505878,0.0004,77609.0,77605.0,0.012885]
[1744137505879,0.34,77608.0,77605.0,0.012885]
[1744137506214,0.34,77608.0,77562.0,0.005]
[1744137506215,0.012887,77596.0,77586.0,0.01301325]
[1744137506359,0.257748,77597.0,77594.0,0.25775]
[1744137506542,0.257739,77598.0,77594.0,0.25775]
[1744137506949,0.257739,77598.0,77591.0,0.270646]
[1744137507172,0.610663,77587.0,77586.0,0.00012525]
[1744137507617,0.73692164,77587.0,77586.0,0.00012525]
[1744137508061,0.610663,77587.0,77586.0,0.00012525]
[1744137508303,0.62269681,77587.0,77586.0,0.00012525]
[1744137509192,0.35303381,77587.0,77586.0,0.01301325]
[1744137509678,0.01303381,77587.0,77586.0,0.01301325]
[1744137510119,0.01203381,77587.0,77586.0,0.01301325]
[1744137510346,0.01203381,77587.0,77586.0,0.13927189]
[1744137510746,0.38528969,77600.0,77594.0,0.012887]
[1744137510942,0.257733,77600.0,77596.0,0.257745]
[1744137511161,0.34,77599.0,77596.0,0.257745]
[1744137511698,0.34,77599.0,77597.0,0.257741]
[1744137511928,0.597737,77599.0,77595.0,0.257747]
[1744137512116,0.257729,77601.0,77596.0,0.012887]
[1744137512326,0.34,77599.0,77594.0,0.012887]
[1744137512486,0.34,77599.0,77596.0,0.257745]
[1744137512681,0.345,77599.0,77597.0,0.25774]
[1744137512884,0.345,77599.0,77596.0,0.001]
[1744137513098,0.257775,77587.0,77586.0,0.00012525]
[1744137513307,0.34,77587.0,77586.0,0.27079125]
[1744137513707,0.345,77599.0,77592.0,0.012887]
[1744137513906,0.357886,77599.0,77592.0,0.012887]
[1744137514216,0.34,77596.0,77590.0,0.257762]
[1744137514541,0.01202887,77595.0,77591.0,0.25776]
[1744137514667,0.01202887,77595.0,77594.0,0.270638]
[1744137515041,0.01202887,77595.0,77594.0,0.60679749]
[1744137515264,8.7e-07,77595.0,77594.0,0.71153563]
[1744137515460,8.7e-07,77595.0,77594.0,0.65279749]
[1744137515583,0.0004,77609.0,77608.0,0.27059]
[1744137515790,0.00929632,77609.0,77608.0,0.27059]
[1744137517160,0.0004,77609.0,77608.0,0.39684864]
[1744137517326,1e-06,77609.0,77608.0,0.41138949]
[1744137517533,0.0001673,77617.0,77616.0,0.270561]
[1744137517709,0.0001673,77617.0,77616.0,0.60668049]
[1744137518758,0.0001673,77617.0,77616.0,0.60968049]
[1744137518962,0.0001673,77617.0,77616.0,0.61368049]
[1744137520734,0.0001673,77617.0,77616.0,0.40381964]
[1744137520972,0.2578423,77617.0,77616.0,0.007]
[1744137521180,0.6107253,77617.0,77616.0,0.007]
[1744137521582,0.73698394,77617.0,77616.0,0.007]
[1744137522159,0.73698394,77617.0,77584.0,0.012889]
[1744137522160,0.257819,77574.0,77572.0,0.12367152]
[1744137522471,0.34,77573.0,77572.0,0.11459808]
[1744137522670,0.34872938,77573.0,77572.0,0.11459808]
[1744137522872,0.34872938,77573.0,77572.0,0.12748908]
[1744137523075,0.34872938,77573.0,77572.0,0.013308]
[1744137523251,0.257783,77585.0,77572.0,0.14856664]
[1744137523451,0.597771,77589.0,77579.0,0.01289]
[1744137523654,0.34,77589.0,77586.0,0.257776]
[1744137523853,0.34886433,77589.0,77588.0,0.012888]
[1744137524119,0.34886433,77589.0,77587.0,0.257774]
[1744137524311,0.34,77589.0,77587.0,0.257774]
[1744137524510,0.34,77589.0,77587.0,0.270662]
[1744137524917,0.34,77592.0,77588.0,0.257768]
[1744137525344,0.34,77592.0,77590.0,0.012888]
[1744137525495,0.257735,77599.0,77590.0,0.012888]
[1744137525681,0.34,77594.0,77590.0,0.27065]
[1744137525874,0.34,77594.0,77591.0,0.257761]
[1744137526218,0.004,77592.0,77591.0,0.270649]
[1744137526373,0.34,77596.0,77592.0,0.270642]
[1744137526583,0.34,77596.0,77593.0,0.27064]
[1744137527386,0.597745,77597.0,77590.0,0.001]
[1744137527585,0.34,77597.0,77591.0,0.257761]
[1744137527808,0.012888,77590.0,77578.0,0.01289]
[1744137528031,0.257768,77590.0,77583.0,0.012889]
[1744137528251,0.257774,77588.0,77584.0,0.257783]
[1744137529107,0.012889,77585.0,77578.0,0.00962921]
[1744137529306,0.257818,77574.0,77569.0,0.208211]
[1744137529512,0.012889,77584.0,77569.0,0.208211]
[1744137529513,0.257815,77575.0,77569.0,0.208211]
[1744137529808,0.257815,77575.0,77571.0,0.257827]
[1744137530215,0.012889,77581.0,77569.0,0.466043]
[1744137530216,0.012887,77596.0,77586.0,0.270665]
[1744137530414,0.597792,77582.0,77578.0,0.01289]
[1744137530623,0.0120102,77581.0,77578.0,0.01289]
[1744137530851,0.0120102,77581.0,77580.0,0.270686]
[1744137531024,0.0120102,77581.0,77580.0,0.257797]
[1744137531899,0.34,77573.0,77550.0,0.0464]
[1744137532124,0.34,77573.0,77549.0,0.2579]
[1744137532125,0.61075,77562.0,77549.0,0.2579]
[1744137532458,0.34,77562.0,77561.0,0.25838625]
[1744137532658,0.36489941,77562.0,77561.0,0.00052525]
[1744137532822,0.37366184,77562.0,77561.0,0.00052525]
[1744137533211,0.39766526,77562.0,77561.0,0.00052525]
[1744137533418,0.38477326,77562.0,77561.0,0.00052525]
[1744137533621,0.39766526,77562.0,77561.0,0.00052525]
[1744137534143,0.04477326,77562.0,77561.0,0.01341825]
[1744137534343,0.03601083,77562.0,77561.0,0.13967689]
[1744137534592,0.01200741,77562.0,77561.0,0.13967689]
[1744137534792,0.01600741,77562.0,77561.0,0.13967689]
[1744137534994,0.01900741,77562.0,77561.0,0.13967689]
[1744137535201,0.007,77562.0,77561.0,0.13967689]
[1744137535407,0.007,77562.0,77561.0,0.01341825]
[1744137535758,0.003,77562.0,77561.0,0.00052525]
[1744137535950,0.004,77562.0,77561.0,0.00052525]
[1744137536155,0.004,77562.0,77561.0,0.01341825]
[1744137536864,0.004,77562.0,77561.0,0.00052525]
[1744137537466,0.003,77562.0,77561.0,0.01341825]
[1744137538102,0.004,77562.0,77561.0,0.01341825]
[1744137538315,0.001,77562.0,77561.0,0.14225535]
[1744137538628,0.00871302,77569.0,77568.0,0.270729]
[1744137538835,0.597819,77574.0,77571.0,0.257825]
[1744137538977,0.34,77576.0,77565.0,0.257845]
[1744137539192,0.257833,77570.0,77567.0,0.25784]
[1744137539390,0.02163144,77577.0,77576.0,0.01289]
[1744137539391,0.00874144,77577.0,77576.0,0.01289]
[1744137539633,0.257786,77584.0,77579.0,0.01289]
[1744137539954,0.257789,77583.0,77578.0,0.257804]
[1744137540149,0.02397326,77582.0,77577.0,0.257805]
[1744137540352,0.257798,77580.0,77574.0,0.257818]
[1744137540685,0.00898322,77584.0,77583.0,0.270677]
[1744137541083,0.02096782,77584.0,77583.0,0.270677]
[1744137541282,0.01289,77576.0,77571.0,0.257828]
[1744137541441,0.012889,77581.0,77576.0,0.25781]
[1744137541643,0.02096782,77584.0,77583.0,0.257788]
[1744137541864,0.02096782,77584.0,77583.0,0.270677]
[1744137542110,0.02496782,77584.0,77583.0,0.271677]
[1744137542287,0.03196782,77584.0,77583.0,0.272677]
[1744137542504,0.03196782,77584.0,77583.0,0.002]
[1744137542702,0.03196782,77584.0,77583.0,0.272677]
[1744137543099,0.01998322,77584.0,77583.0,0.272677]
[1744137543433,0.01598322,77584.0,77583.0,0.271677]
[1744137544167,0.01998322,77584.0,77583.0,0.272677]
[1744137544370,0.01298322,77584.0,77583.0,0.270677]
[1744137544822,0.01998322,77584.0,77583.0,0.271677]
[1744137545195,0.01398322,77584.0,77576.0,0.13914864]
[1744137545392,0.01398322,77584.0,77583.0,0.270677]
[1744137545597,0.007,77584.0,77583.0,0.39693564]
[1744137545800,0.0001673,77617.0,77616.0,0.270561]
[1744137546479,0.00903382,77617.0,77616.0,0.270561]
[1744137546685,0.00903382,77617.0,77614.0,0.270568]
[1744137547075,0.012884,77612.0,77603.0,0.012886]
[1744137547276,0.012884,77612.0,77591.0,0.0458]
[1744137547277,0.012886,77600.0,77595.0,0.00989428]
[1744137547552,0.012886,77600.0,77550.0,0.38528969]
[1744137547553,0.012888,77586.0,77579.0,0.19516]
[1744137547754,0.012888,77587.0,77580.0,0.012889]
[1744137548000,0.01289,77576.0,77569.0,0.012891]
[1744137548291,0.01289,77576.0,77564.0,0.270736]
[1744137548292,0.012891,77572.0,77564.0,0.270736]
[1744137548491,0.01289,77575.0,77568.0,0.012891]
[1744137548693,0.01289,77576.0,77568.0,0.012891]
[1744137549004,0.012892,77567.0,77561.0,0.0004]
[1744137549219,0.34,77570.0,77564.0,0.012892]
[1744137549339,0.34,77574.0,77571.0,0.012891]
[1744137549568,0.34006988,77576.0,77574.0,0.257817]
[1744137549773,0.02401557,77575.0,77574.0,0.270707]
[1744137549973,0.02401557,77575.0,77574.0,0.39696564]
[1744137550219,6.988e-05,77576.0,77575.0,0.01289]
[1744137550376,6.988e-05,77576.0,77575.0,0.15368949]
[1744137550571,6.988e-05,77576.0,77575.0,0.15626725]
[1744137551625,6.988e-05,77576.0,77575.0,0.15368949]
[1744137551837,6.988e-05,77576.0,77575.0,0.15626725]
[1744137552062,8.8e-07,77576.0,77575.0,0.20206725]
[1744137552681,8.8e-07,77576.0,77575.0,0.19948949]
[1744137552964,8.8e-07,77576.0,77575.0,0.45730449]
[1744137552965,0.00100088,77576.0,77575.0,0.45730449]
[1744137553254,8.8e-07,77576.0,77575.0,0.45830449]
[1744137553432,8.8e-07,77576.0,77575.0,0.46730449]
[1744137553631,8.8e-07,77576.0,77575.0,0.47630449]
[1744137554379,8.8e-07,77576.0,77575.0,0.81630449]
[1744137554781,0.03606226,77602.0,77601.0,0.270614]
[1744137554992,0.01243758,77602.0,77601.0,0.39687264]
[1744137555207,0.00041754,77602.0,77601.0,0.39687264]
[1744137555745,0.00041754,77602.0,77601.0,0.270614]
[1744137556157,0.00041754,77602.0,77601.0,0.271614]
[1744137556598,0.61102854,77602.0,77601.0,0.001]
[1744137556799,0.36445059,77602.0,77601.0,0.258728]
[1744137557000,0.36445059,77602.0,77601.0,0.271614]
[1744137557401,0.00041754,77602.0,77601.0,0.271614]
[1744137557817,0.00041754,77602.0,77601.0,0.39787264]
[1744137558025,0.00041754,77602.0,77601.0,0.39687264]
[1744137558174,0.00441754,77602.0,77601.0,0.39687264]
[1744137558581,0.00041754,77602.0,77601.0,0.39687264]
[1744137558976,0.00041754,77602.0,77601.0,0.39787264]
[1744137559268,0.61102854,77602.0,77601.0,0.001]
[1744137559491,0.012888,77589.0,77583.0,0.257787]
[1744137559704,0.77975674,77590.0,77584.0,0.13914764]
[1744137559877,0.257803,77579.0,77575.0,0.257812]
[1744137560080,0.012889,77580.0,77575.0,0.01289]
[1744137560235,0.012889,77584.0,77577.0,0.257807]
[1744137560581,0.012891,77573.0,77565.0,0.00963137]
[1744137560845,0.27075,77562.0,77561.0,0.0004]
[1744137561011,0.270736,77567.0,77561.0,0.25826]
[1744137561209,0.270736,77567.0,77561.0,0.11518232]
[1744137561210,0.012892,77562.0,77561.0,0.11518232]
[1744137561415,0.352892,77562.0,77561.0,0.11518232]
[1744137562065,0.36402585,77562.0,77561.0,0.11530757]
[1744137562245,0.37691785,77562.0,77561.0,0.11530757]
[1744137562676,0.02402585,77562.0,77561.0,0.12820057]
[1744137562831,0.02402585,77562.0,77561.0,0.11530757]
[1744137563032,0.38091785,77562.0,77561.0,0.11530757]
[1744137563467,0.37691785,77562.0,77561.0,0.11530757]
[1744137564880,0.36702585,77562.0,77561.0,0.11530757]
[1744137565287,0.37691785,77562.0,77561.0,0.11530757]
[1744137565500,0.36402585,77562.0,77561.0,0.11530757]
[1744137565709,0.261858,77562.0,77561.0,0.00052525]
[1744137566113,0.257858,77562.0,77561.0,0.00052525]
[1744137566313,0.257852,77564.0,77561.0,0.00052525]
[1744137566512,0.004,77562.0,77561.0,0.00052525]
[1744137567736,0.344,77562.0,77561.0,0.00052525]
[1744137567940,0.63340665,77562.0,77561.0,0.00052525]
[1744137568241,0.5031512,77562.0,77561.0,0.00052525]
[1744137569187,0.02400056,77562.0,77561.0,0.00052525]
[1744137569538,0.004,77562.0,77561.0,0.00152525]
[1744137569734,0.004,77562.0,77561.0,0.00252525]
[1744137569943,0.02800056,77562.0,77561.0,0.00252525]
[1744137570123,0.02400056,77562.0,77561.0,0.13967689]
[1744137570325,0.03689256,77562.0,77561.0,0.00052525]
[1744137570711,0.257836,77569.0,77565.0,0.257846]
[1744137570882,0.257834,77569.0,77562.0,0.257855]
[1744137571095,0.257836,77569.0,77565.0,0.257847]
[1744137571316,0.257838,77568.0,77565.0,0.257847]
[1744137571519,0.257836,77569.0,77565.0,0.257847]
[1744137571695,0.012888,77586.0,77577.0,0.257806]
[1744137571989,0.52199174,77590.0,77575.0,0.01289]
[1744137572201,0.34,77582.0,77577.0,0.257808]
[1744137572394,0.34,77580.0,77578.0,0.257802]
[1744137572552,0.597798,77580.0,77577.0,0.270698]
[1744137572784,0.34,77580.0,77577.0,0.270695]
[1744137572978,0.34,77580.0,77579.0,0.257801]
[1744137573184,0.002,77580.0,77579.0,0.39694964]
[1744137573389,0.002,77580.0,77579.0,0.41149049]
[1744137573903,0.002,77580.0,77579.0,0.47045756]
[1744137574461,0.012886,77599.0,77588.0,0.012888]
[1744137574660,0.34,77599.0,77598.0,0.270621]
[1744137574878,0.257708,77607.0,77603.0,0.270607]
[1744137575067,0.257708,77607.0,77602.0,0.257723]
[1744137575068,0.34,77605.0,77602.0,0.257723]
[1744137575311,0.257704,77609.0,77602.0,0.012886]
[1744137575544,0.25771,77607.0,77601.0,0.012886]
[1744137575721,0.00982965,77609.0,77608.0,0.27059]
[1744137575937,0.0004178,77609.0,77608.0,0.39684864]
[1744137576265,0.0004178,77609.0,77599.0,0.257733]
[1744137576490,0.257722,77603.0,77602.0,0.001]
[1744137576688,0.012886,77599.0,77590.0,0.257764]
[1744137576887,0.012887,77597.0,77590.0,0.270652]
[1744137577112,0.34,77599.0,77593.0,0.257754]
[1744137577344,0.257743,77597.0,77567.0,0.51568]
[1744137577505,0.012887,77597.0,77588.0,0.012888]
[1744137577712,0.34,77599.0,77593.0,0.257754]
[1744137577891,0.257745,77596.0,77593.0,0.257754]
[1744137578230,0.257766,77590.0,77587.0,0.257773]
[1744137578427,0.012887,77597.0,77592.0,0.257758]
[1744137578735,0.257768,77589.0,77588.0,0.001]
[1744137578946,0.270656,77589.0,77588.0,0.001]
[1744137579151,0.257784,77585.0,77581.0,0.257792]
[1744137579370,0.257805,77578.0,77572.0,0.012891]
[1744137579583,0.25781,77577.0,77574.0,0.257817]
[1744137579720,0.01289,77574.0,77561.0,0.013293]
[1744137579943,0.257825,77572.0,77569.0,0.257834]
[1744137580293,0.012891,77571.0,77569.0,0.00012525]
[1744137580587,0.610722,77570.0,77569.0,0.00012525]
[1744137581038,0.610722,77570.0,77561.0,0.0004]
[1744137581039,0.61075,77562.0,77561.0,0.0004]
[1744137581152,0.73700864,77562.0,77561.0,0.00052535]
[1744137581645,0.74899866,77562.0,77561.0,0.00052535]
[1744137581814,0.96786269,77562.0,77561.0,0.00052535]
[1744137581981,0.96786269,77562.0,77561.0,3.5e-07]
[1744137582619,0.97086269,77562.0,77561.0,3.5e-07]
[1744137582821,0.97686269,77562.0,77561.0,0.00100035]
[1744137583636,1.10311814,77562.0,77561.0,1e-08]
[1744137583852,0.610782,77553.0,77536.0,0.0003346]
[1744137584172,0.73704064,77553.0,77552.0,0.00040428]
[1744137584322,0.352895,77545.0,77544.0,6.988e-05]
[1744137584529,0.79289524,77545.0,77544.0,6.988e-05]
[1744137584728,0.47915364,77545.0,77544.0,6.988e-05]
[1744137585049,0.50313767,77545.0,77544.0,6.988e-05]
[1744137585191,0.51512769,77545.0,77544.0,6.988e-05]
[1744137585794,0.53112769,77545.0,77544.0,0.00206988]
[1744137585995,0.52412769,77545.0,77544.0,0.00106988]
[1744137586221,0.39786905,77545.0,77544.0,0.00106988]
[1744137586425,0.40486905,77545.0,77544.0,0.00206988]
[1744137586618,0.39197405,77545.0,77544.0,0.00206988]
[1744137586824,0.40486905,77545.0,77544.0,0.00206988]
[1744137587022,0.39586905,77545.0,77544.0,0.00106988]
[1744137587218,0.42840574,77545.0,77544.0,0.00106988]
[1744137587454,0.53112769,77545.0,77544.0,0.00106988]
[1744137587646,0.51913767,77545.0,77544.0,0.00106988]
[1744137588135,0.257987,77524.0,77520.0,0.24715617]
[1744137588469,0.257987,77524.0,77520.0,0.25812235]
[1744137588470,0.257986,77524.0,77520.0,0.25812235]
[1744137588637,0.257986,77524.0,77521.0,0.257993]
[1744137589006,0.257979,77526.0,77521.0,0.257993]
[1744137589208,0.257982,77525.0,77521.0,0.257992]
[1744137589417,0.257982,77525.0,77520.0,0.00012535]
[1744137589418,0.270891,77522.0,77520.0,0.00012535]
[1744137589659,0.257992,77522.0,77520.0,0.00312535]
[1744137589861,0.012899,77521.0,77520.0,0.00012535]
[1744137590067,0.352899,77521.0,77520.0,0.00012535]
[1744137590454,0.34,77521.0,77520.0,0.00012535]
[1744137590660,0.352899,77521.0,77520.0,0.00012535]
[1744137591500,0.354899,77521.0,77520.0,0.00012535]
[1744137591894,0.48215445,77521.0,77520.0,0.00012535]
[1744137592100,0.50610433,77521.0,77520.0,0.00012535]
[1744137592444,0.37984888,77521.0,77520.0,0.00012535]
[1744137593192,0.03791815,77521.0,77520.0,0.00012535]
[1744137593393,0.37791815,77521.0,77520.0,0.00012535]
[1744137593557,0.35396827,77521.0,77520.0,0.00012535]
[1744137593757,0.342,77521.0,77520.0,0.00012535]
[1744137594171,0.34,77521.0,77520.0,0.00012535]
[1744137594373,0.597994,77521.0,77520.0,0.00012535]
[1744137594578,0.598994,77521.0,77520.0,0.00012535]
[1744137594772,0.597994,77521.0,77520.0,0.00012535]
[1744137595002,0.34,77521.0,77520.0,0.00012535]
[1744137595179,0.003,77521.0,77520.0,0.27102135]
[1744137595701,0.012897,77533.0,77521.0,0.012899]
[1744137595861,0.39882403,77531.0,77522.0,0.25799]
[1744137596081,0.257977,77527.0,77523.0,0.257987]
[1744137596344,0.257977,77527.0,77520.0,0.00012535]
[1744137596345,0.257994,77521.0,77520.0,0.00012535]
[1744137596462,0.610893,77521.0,77520.0,0.00012535]
[1744137597086,0.34,77521.0,77520.0,0.01302435]
[1744137597301,0.00952989,77527.0,77524.0,0.257983]
[1744137597528,0.597965,77530.0,77526.0,0.257977]
[1744137597705,0.34,77530.0,77526.0,0.270875]
[1744137597907,0.270848,77534.0,77527.0,0.257973]
[1744137598113,0.34,77533.0,77526.0,0.270875]
[1744137598307,0.34,77533.0,77527.0,0.012898]
[1744137598506,0.012895,77544.0,77535.0,0.012897]
[1744137598669,0.34,77539.0,77535.0,0.270838]
[1744137598882,0.34,77537.0,77534.0,0.257949]
[1744137599088,0.34967939,77537.0,77533.0,0.012897]
[1744137599287,0.34967939,77537.0,77534.0,0.257949]
[1744137599486,0.012897,77532.0,77505.0,0.516089]
[1744137599709,0.38592603,77530.0,77525.0,0.25798]
[1744137599906,0.38592603,77530.0,77524.0,0.012899]
[1744137599907,0.012897,77536.0,77526.0,0.012898]
[1744137600116,0.01058294,77537.0,77529.0,0.012898]
[1744137600318,0.34,77535.0,77529.0,0.012898]
[1744137600519,0.34,77535.0,77533.0,0.012897]
[1744137600720,0.34,77535.0,77532.0,0.257957]
[1744137600918,0.34,77535.0,77533.0,0.257954]
[1744137601117,0.257952,77534.0,77530.0,0.257962]